[Event "*** Titled Tuesday Blitz AM"]
[Site "Chess.com"]
[Date "2020.01.07"]
[Round "1"]
[White "politeplayer"]
[Black "nonscitis"]
[Result "0-1"]
[WhiteElo "2115"]
[BlackElo "2569"]
[TimeControl "180+2"]
[EndTime "9:07:23 PST"]
[Termination "nonscitis won by resignation"]

1. f4 {[%clk 0:02:57.1]} 1... e5 {[%clk 0:02:59.7]} 2. e4 {[%clk 0:02:56.2]}
2... exf4 {[%clk 0:02:59.1]} 3. Nf3 {[%clk 0:02:55.5]} 3... d6 {[%clk
0:02:57.1]} 4. Nc3 {[%clk 0:02:56.1]} 4... g5 {[%clk 0:02:54.5]} 5. Bc4 {[%clk
0:02:54.5]} 5... g4 {[%clk 0:02:34.7]} 6. O-O {[%clk 0:02:53.8]} 6... gxf3
{[%clk 0:02:15.5]} 7. Qxf3 {[%clk 0:02:52.4]} 7... Be6 {[%clk 0:02:06.4]} 8.
Bxe6 {[%clk 0:02:39.9]} 8... fxe6 {[%clk 0:02:06.1]} 9. Qxf4 {[%clk 0:02:35.6]}
9... Qe7 {[%clk 0:02:03.1]} 10. d4 {[%clk 0:02:29.7]} 10... Nd7 {[%clk
0:01:49.5]} 11. Nb5 {[%clk 0:02:26.1]} 11... O-O-O {[%clk 0:01:47.9]} 12. Nxa7+
{[%clk 0:02:25.8]} 12... Kb8 {[%clk 0:01:48]} 13. Nb5 {[%clk 0:02:27.3]} 13...
Bg7 {[%clk 0:01:44]} 14. Qe3 {[%clk 0:02:22.9]} 14... c6 {[%clk 0:01:40.1]} 15.
Na3 {[%clk 0:02:04]} 15... Ngf6 {[%clk 0:01:39.1]} 16. Nc4 {[%clk 0:02:02]}
16... e5 {[%clk 0:01:23.6]} 17. Qb3 {[%clk 0:01:50.8]} 17... Kc7 {[%clk
0:00:56.8]} 18. Bd2 {[%clk 0:01:44.8]} 18... b6 {[%clk 0:00:53.3]} 19. a4 {[%clk
0:01:29.1]} 19... Nxe4 {[%clk 0:00:45.5]} 20. a5 {[%clk 0:01:27.2]} 20... b5
{[%clk 0:00:44.3]} 21. a6 {[%clk 0:01:25.9]} 21... Nxd2 {[%clk 0:00:44.3]} 22.
Nxd2 {[%clk 0:01:20.1]} 22... Rhf8 {[%clk 0:00:44.3]} 23. Rxf8 {[%clk
0:01:14.6]} 23... Rxf8 {[%clk 0:00:44.2]} 24. a7 {[%clk 0:01:14.7]} 24... Nb6
{[%clk 0:00:44.3]} 25. c4 {[%clk 0:01:05]} 25... exd4 {[%clk 0:00:42.4]} 26. Nf3
{[%clk 0:00:53.6]} 26... Qe3+ {[%clk 0:00:41.8]} 27. Qxe3 {[%clk 0:00:51.4]}
27... dxe3 {[%clk 0:00:43.7]} 28. cxb5 {[%clk 0:00:51]} 28... Bxb2 {[%clk
0:00:33.5]} 29. Ra2 {[%clk 0:00:45.5]} 29... Bf6 {[%clk 0:00:31.8]} 30. Rc2
{[%clk 0:00:42.2]} 30... c5 {[%clk 0:00:32.2]} 31. Kf1 {[%clk 0:00:41.1]} 31...
Ra8 {[%clk 0:00:31.8]} 0-1

[Event "*** Titled Tuesday Blitz AM"]
[Site "Chess.com"]
[Date "2020.01.07"]
[Round "1"]
[White "Sven_Tica"]
[Black "Rainbow2014"]
[Result "1-0"]
[WhiteElo "2654"]
[BlackElo "2269"]
[TimeControl "180+2"]
[EndTime "9:07:25 PST"]
[Termination "Sven_Tica won on time"]

1. d4 {[%clk 0:03:01.9]} 1... Nf6 {[%clk 0:02:59]} 2. c4 {[%clk 0:03:02.8]} 2...
e6 {[%clk 0:02:59.3]} 3. g3 {[%clk 0:03:03.7]} 3... d5 {[%clk 0:02:59.9]} 4. Bg2
{[%clk 0:03:04.8]} 4... Be7 {[%clk 0:02:59.6]} 5. Nf3 {[%clk 0:03:06.2]} 5...
O-O {[%clk 0:03:00]} 6. O-O {[%clk 0:03:07.8]} 6... dxc4 {[%clk 0:03:00.8]} 7.
Ne5 {[%clk 0:03:08.2]} 7... Nc6 {[%clk 0:03:01.1]} 8. Nxc6 {[%clk 0:03:09.7]}
8... bxc6 {[%clk 0:03:01.3]} 9. Na3 {[%clk 0:03:11.5]} 9... Bxa3 {[%clk
0:02:59.8]} 10. bxa3 {[%clk 0:03:13.4]} 10... Nd5 {[%clk 0:02:49.5]} 11. Qd2
{[%clk 0:03:14.6]} 11... Ba6 {[%clk 0:02:25.3]} 12. Qa5 {[%clk 0:03:15.6]} 12...
Qc8 {[%clk 0:02:19.7]} 13. a4 {[%clk 0:03:17.1]} 13... Rd8 {[%clk 0:02:13.6]}
14. Ba3 {[%clk 0:03:18.1]} 14... Rb8 {[%clk 0:01:59.7]} 15. Bc5 {[%clk
0:03:17.8]} 15... c3 {[%clk 0:01:51.4]} 16. Rfe1 {[%clk 0:03:07.2]} 16... Nb6
{[%clk 0:01:39.2]} 17. Bxc6 {[%clk 0:03:03.4]} 17... Bb7 {[%clk 0:01:39.4]} 18.
Bg2 {[%clk 0:02:54.7]} 18... Bxg2 {[%clk 0:01:33.1]} 19. Kxg2 {[%clk 0:02:56.6]}
19... Qb7+ {[%clk 0:01:34.4]} 20. f3 {[%clk 0:02:57]} 20... Qc6 {[%clk
0:01:23.8]} 21. Rac1 {[%clk 0:02:40.2]} 21... Qxa4 {[%clk 0:01:11.6]} 22. Bxb6
{[%clk 0:02:40.9]} 22... Qxa5 {[%clk 0:01:03.9]} 23. Bxa5 {[%clk 0:02:41.8]}
23... Rxd4 {[%clk 0:01:04.1]} 24. Bxc7 {[%clk 0:02:41.3]} 24... Rc8 {[%clk
0:01:04]} 25. Rxc3 {[%clk 0:02:42.3]} 25... Rd2 {[%clk 0:01:01.6]} 26. Kf2
{[%clk 0:02:34.2]} 26... Rxa2 {[%clk 0:00:58.6]} 27. Rb1 {[%clk 0:02:35.2]}
27... h5 {[%clk 0:00:53.2]} 28. Be5 {[%clk 0:02:33.7]} 28... Rd8 {[%clk
0:00:44.2]} 29. Rb8 {[%clk 0:02:24.1]} 29... Rxb8 {[%clk 0:00:41.9]} 30. Bxb8
{[%clk 0:02:26]} 30... a5 {[%clk 0:00:41.5]} 31. Rc8+ {[%clk 0:02:26.7]} 31...
Kh7 {[%clk 0:00:40.2]} 32. Be5 {[%clk 0:02:28.3]} 32... a4 {[%clk 0:00:37.3]}
33. Ra8 {[%clk 0:02:29]} 33... f6 {[%clk 0:00:31.9]} 34. Bd6 {[%clk 0:02:23.7]}
34... Kg6 {[%clk 0:00:19.9]} 35. Ra7 {[%clk 0:02:24.1]} 35... Ra1 {[%clk
0:00:18.2]} 36. Bf8 {[%clk 0:02:24.5]} 36... Kf5 {[%clk 0:00:18.2]} 37. Bxg7
{[%clk 0:02:14.1]} 37... a3 {[%clk 0:00:17.3]} 38. e4+ {[%clk 0:02:15.4]} 38...
Ke5 {[%clk 0:00:16.6]} 39. Ra5+ {[%clk 0:02:16.4]} 39... Kd6 {[%clk 0:00:16.3]}
40. Rxa3 {[%clk 0:02:16.8]} 40... Rxa3 {[%clk 0:00:15.9]} 41. Bf8+ {[%clk
0:02:17.9]} 41... Kc6 {[%clk 0:00:14.6]} 42. Bxa3 {[%clk 0:02:18.7]} 42... Kd7
{[%clk 0:00:13.1]} 43. Ke3 {[%clk 0:02:19.7]} 43... f5 {[%clk 0:00:10.5]} 44.
exf5 {[%clk 0:02:20.4]} 44... exf5 {[%clk 0:00:11.8]} 45. Kf4 {[%clk 0:02:22.1]}
45... Ke6 {[%clk 0:00:13.5]} 46. Kg5 {[%clk 0:02:21.7]} 46... h4 {[%clk
0:00:10.6]} 47. gxh4 {[%clk 0:02:22.8]} 47... Kf7 {[%clk 0:00:08.6]} 48. Kxf5
{[%clk 0:02:23.4]} 48... Kg7 {[%clk 0:00:02.6]} 49. h5 {[%clk 0:02:24.2]} 49...
Kh7 {[%clk 0:00:03.9]} 50. Kg5 {[%clk 0:02:24.5]} 50... Kh8 {[%clk 0:00:04.6]}
51. Kg6 {[%clk 0:02:25.3]} 51... Kg8 {[%clk 0:00:05.3]} 52. h6 {[%clk
0:02:25.9]} 1-0

[Event "*** Titled Tuesday Blitz AM"]
[Site "Chess.com"]
[Date "2020.01.07"]
[Round "1"]
[White "LLRChess"]
[Black "AtabayevSaparmyrat"]
[Result "0-1"]
[WhiteElo "2306"]
[BlackElo "2695"]
[TimeControl "180+2"]
[EndTime "9:07:26 PST"]
[Termination "AtabayevSaparmyrat won by resignation"]

1. e4 {[%clk 0:03:01.3]} 1... e5 {[%clk 0:02:53]} 2. Nf3 {[%clk 0:03:02]} 2...
Nc6 {[%clk 0:02:45.2]} 3. Bb5 {[%clk 0:03:03.3]} 3... Nf6 {[%clk 0:02:35.9]} 4.
d3 {[%clk 0:03:00.8]} 4... d6 {[%clk 0:02:34.3]} 5. O-O {[%clk 0:02:59.8]} 5...
g6 {[%clk 0:02:27.3]} 6. d4 {[%clk 0:02:58.1]} 6... Bd7 {[%clk 0:02:25.5]} 7.
Bg5 {[%clk 0:02:35.9]} 7... Bg7 {[%clk 0:02:22.6]} 8. Bxc6 {[%clk 0:02:34.2]}
8... Bxc6 {[%clk 0:02:23.5]} 9. dxe5 {[%clk 0:02:34.6]} 9... dxe5 {[%clk
0:02:24.5]} 10. Qxd8+ {[%clk 0:02:31.7]} 10... Rxd8 {[%clk 0:02:26.3]} 11. Nxe5
{[%clk 0:02:32.7]} 11... Bxe4 {[%clk 0:02:26]} 12. Nc3 {[%clk 0:02:12.1]} 12...
Bf5 {[%clk 0:02:06.1]} 13. g4 {[%clk 0:02:06.2]} 13... Be6 {[%clk 0:01:59.6]}
14. f3 {[%clk 0:01:58.5]} 14... O-O {[%clk 0:01:59.5]} 15. Rfe1 {[%clk
0:01:53.8]} 15... h6 {[%clk 0:01:58]} 16. Bh4 {[%clk 0:01:43.7]} 16... Rfe8
{[%clk 0:01:52.9]} 17. Bg3 {[%clk 0:01:24.7]} 17... Nd5 {[%clk 0:01:48.7]} 18.
Nxd5 {[%clk 0:01:12]} 18... Bxd5 {[%clk 0:01:50.5]} 19. Kf2 {[%clk 0:01:09.2]}
19... c6 {[%clk 0:01:47]} 20. Nd3 {[%clk 0:01:08.6]} 20... Bc4 {[%clk
0:01:45.8]} 21. Rxe8+ {[%clk 0:01:04.7]} 21... Rxe8 {[%clk 0:01:47.3]} 22. Re1
{[%clk 0:00:59.6]} 22... Rxe1 {[%clk 0:01:45.9]} 23. Kxe1 {[%clk 0:00:59.4]}
23... Bxd3 {[%clk 0:01:44.8]} 24. cxd3 {[%clk 0:00:59.2]} 24... Bxb2 {[%clk
0:01:46.6]} 25. Bf2 {[%clk 0:00:58.3]} 25... a6 {[%clk 0:01:44.5]} 26. d4 {[%clk
0:00:55.1]} 26... Kf8 {[%clk 0:01:43.5]} 27. Kd2 {[%clk 0:00:50.3]} 27... Ke7
{[%clk 0:01:43.7]} 28. Kc2 {[%clk 0:00:49.2]} 28... Ba3 {[%clk 0:01:44.6]} 29.
Kb3 {[%clk 0:00:50.2]} 29... Bd6 {[%clk 0:01:45.3]} 30. h4 {[%clk 0:00:51.1]}
30... h5 {[%clk 0:01:44]} 31. Kc4 {[%clk 0:00:51.2]} 31... Ke6 {[%clk
0:01:44.2]} 32. Be3 {[%clk 0:00:51.5]} 32... Bg3 {[%clk 0:01:41.2]} 33. Kd3
{[%clk 0:00:38.9]} 33... Bxh4 {[%clk 0:01:41.4]} 34. Ke4 {[%clk 0:00:39]} 34...
f5+ {[%clk 0:01:39.5]} 35. gxf5+ {[%clk 0:00:37]} 35... gxf5+ {[%clk 0:01:41]}
36. Kf4 {[%clk 0:00:38.7]} 36... Be7 {[%clk 0:01:42.3]} 37. Bf2 {[%clk
0:00:36.6]} 37... h4 {[%clk 0:01:41.7]} 0-1

[Event "*** Titled Tuesday Blitz AM"]
[Site "Chess.com"]
[Date "2020.01.07"]
[Round "1"]
[White "ristingho"]
[Black "GeorgMeier"]
[Result "0-1"]
[WhiteElo "2516"]
[BlackElo "2960"]
[TimeControl "180+2"]
[EndTime "9:07:27 PST"]
[Termination "GeorgMeier won by resignation"]

1. d4 {[%clk 0:03:01.9]} 1... e6 {[%clk 0:02:57.5]} 2. c4 {[%clk 0:03:00.9]}
2... b6 {[%clk 0:02:58.9]} 3. a3 {[%clk 0:03:00]} 3... Nf6 {[%clk 0:02:59]} 4.
Nc3 {[%clk 0:03:00.4]} 4... Bb7 {[%clk 0:03:00]} 5. Qc2 {[%clk 0:02:58.5]} 5...
d5 {[%clk 0:03:00.4]} 6. Nf3 {[%clk 0:02:55.8]} 6... c5 {[%clk 0:02:53.4]} 7.
cxd5 {[%clk 0:02:48.7]} 7... cxd4 {[%clk 0:02:54.3]} 8. Nxd4 {[%clk 0:02:48.7]}
8... Nxd5 {[%clk 0:02:54.2]} 9. Qa4+ {[%clk 0:02:31.2]} 9... Qd7 {[%clk
0:02:54.3]} 10. Qxd7+ {[%clk 0:02:28.5]} 10... Nxd7 {[%clk 0:02:56.2]} 11. Bd2
{[%clk 0:02:23.4]} 11... Bc5 {[%clk 0:02:55.3]} 12. Nb3 {[%clk 0:02:17.1]} 12...
Be7 {[%clk 0:02:55.7]} 13. e3 {[%clk 0:02:16.2]} 13... Rc8 {[%clk 0:02:52.3]}
14. Rc1 {[%clk 0:02:10.3]} 14... O-O {[%clk 0:02:52.2]} 15. Be2 {[%clk
0:02:10.6]} 15... Bf6 {[%clk 0:02:53.1]} 16. Bf3 {[%clk 0:02:05.6]} 16... Ne5
{[%clk 0:02:50.3]} 17. Bxd5 {[%clk 0:01:30.6]} 17... Nd3+ {[%clk 0:02:06]} 18.
Kf1 {[%clk 0:01:29.6]} 18... Bxd5 {[%clk 0:02:04.6]} 19. Nxd5 {[%clk 0:01:26]}
19... exd5 {[%clk 0:02:05.6]} 20. Rxc8 {[%clk 0:01:15]} 20... Rxc8 {[%clk
0:02:07.5]} 21. Ke2 {[%clk 0:01:06.1]} 21... Nxb2 {[%clk 0:02:08.4]} 22. Rb1
{[%clk 0:00:58.1]} 22... Na4 {[%clk 0:01:51.6]} 23. Kd3 {[%clk 0:00:46.6]} 23...
h5 {[%clk 0:01:51.2]} 24. Bb4 {[%clk 0:00:42.4]} 24... a5 {[%clk 0:01:43.3]} 25.
Bd2 {[%clk 0:00:42.9]} 25... Rc4 {[%clk 0:01:43.1]} 26. f3 {[%clk 0:00:39.6]}
26... Kf8 {[%clk 0:01:40.8]} 27. e4 {[%clk 0:00:31.7]} 27... Nb2+ {[%clk
0:01:41.6]} 28. Ke3 {[%clk 0:00:25.8]} 28... dxe4 {[%clk 0:01:41.6]} 29. fxe4
{[%clk 0:00:20.7]} 29... Rc2 {[%clk 0:01:42.6]} 30. Bc1 {[%clk 0:00:09]} 30...
Nc4+ {[%clk 0:01:39.1]} 31. Kd3 {[%clk 0:00:10.3]} 31... Rc3+ {[%clk 0:01:40.1]}
32. Ke2 {[%clk 0:00:11]} 32... b5 {[%clk 0:01:16]} 33. Nd2 {[%clk 0:00:11.8]}
33... Nd6 {[%clk 0:01:11.1]} 34. Bb2 {[%clk 0:00:11.6]} 34... Rc2 {[%clk
0:01:11.4]} 35. e5 {[%clk 0:00:12.2]} 35... Nc4 {[%clk 0:01:10.3]} 36. exf6
{[%clk 0:00:13]} 36... Rxd2+ {[%clk 0:01:11.4]} 37. Kf3 {[%clk 0:00:12.8]} 37...
Rxb2 {[%clk 0:01:13.3]} 38. Rd1 {[%clk 0:00:13.4]} 38... gxf6 {[%clk 0:01:10.9]}
0-1

[Event "*** Titled Tuesday Blitz AM"]
[Site "Chess.com"]
[Date "2020.01.07"]
[Round "1"]
[White "TST2014"]
[Black "bhavesh1810"]
[Result "1-0"]
[WhiteElo "2547"]
[BlackElo "1996"]
[TimeControl "180+2"]
[EndTime "9:07:27 PST"]
[Termination "TST2014 won by resignation"]

1. d4 {[%clk 0:03:01.9]} 1... Nf6 {[%clk 0:03:00]} 2. c4 {[%clk 0:03:02.5]} 2...
e6 {[%clk 0:03:01.1]} 3. Nf3 {[%clk 0:03:03.3]} 3... d5 {[%clk 0:03:01.9]} 4.
Nc3 {[%clk 0:03:04]} 4... Be7 {[%clk 0:03:02.6]} 5. Bf4 {[%clk 0:03:04.5]} 5...
O-O {[%clk 0:03:03.9]} 6. e3 {[%clk 0:03:05.4]} 6... c6 {[%clk 0:03:05.3]} 7. c5
{[%clk 0:03:04.3]} 7... Bd7 {[%clk 0:03:05.9]} 8. b4 {[%clk 0:03:04.6]} 8... Nh5
{[%clk 0:03:05.6]} 9. Bd3 {[%clk 0:03:01.9]} 9... Nxf4 {[%clk 0:03:06.1]} 10.
exf4 {[%clk 0:03:03.2]} 10... Qc7 {[%clk 0:03:07.2]} 11. g3 {[%clk 0:03:02.5]}
11... Be8 {[%clk 0:03:03.4]} 12. h4 {[%clk 0:02:55.2]} 12... Nd7 {[%clk
0:03:03.8]} 13. O-O {[%clk 0:02:54.1]} 13... f5 {[%clk 0:02:57.5]} 14. Re1
{[%clk 0:02:47.5]} 14... Bf7 {[%clk 0:02:58.2]} 15. Ng5 {[%clk 0:02:46.9]} 15...
Nf6 {[%clk 0:02:54.5]} 16. f3 {[%clk 0:02:33.1]} 16... Qd7 {[%clk 0:02:51.9]}
17. Qe2 {[%clk 0:02:33.7]} 17... Rae8 {[%clk 0:02:52.1]} 18. Nxe6 {[%clk
0:02:31.6]} 18... Bxe6 {[%clk 0:02:43.8]} 19. Qxe6+ {[%clk 0:02:32]} 19... Qxe6
{[%clk 0:02:45.7]} 20. Rxe6 {[%clk 0:02:33.1]} 20... g6 {[%clk 0:02:47.6]} 21.
Rae1 {[%clk 0:02:32.3]} 21... Kf7 {[%clk 0:02:49.2]} 22. Kg2 {[%clk 0:02:25.9]}
22... Bd8 {[%clk 0:02:50.1]} 23. R6e5 {[%clk 0:02:23.6]} 23... Bc7 {[%clk
0:02:50.9]} 24. Rxe8 {[%clk 0:02:21.4]} 24... Rxe8 {[%clk 0:02:52.8]} 25. Rxe8
{[%clk 0:02:18.5]} 25... Nxe8 {[%clk 0:02:54.7]} 26. h5 {[%clk 0:02:17.7]} 26...
Ng7 {[%clk 0:02:54.4]} 27. hxg6+ {[%clk 0:02:12.8]} 27... hxg6 {[%clk
0:02:56.3]} 28. Ne2 {[%clk 0:02:13.4]} 28... Ne6 {[%clk 0:02:56.8]} 29. Kh3
{[%clk 0:02:13.3]} 29... Ng7 {[%clk 0:02:44.5]} 30. g4 {[%clk 0:02:11.6]} 30...
Bd8 {[%clk 0:02:45.5]} 31. Ng3 {[%clk 0:02:10.6]} 31... Ke6 {[%clk 0:02:46]} 32.
a4 {[%clk 0:02:07.7]} 32... Bf6 {[%clk 0:02:44.9]} 33. Ne2 {[%clk 0:02:08.5]}
33... a6 {[%clk 0:02:35.9]} 34. Kg3 {[%clk 0:02:07.6]} 34... Kf7 {[%clk
0:02:34.7]} 35. Kf2 {[%clk 0:02:08]} 35... Bh4+ {[%clk 0:02:31.7]} 36. Ke3
{[%clk 0:02:09.1]} 36... Bf6 {[%clk 0:02:33.3]} 37. Ng3 {[%clk 0:02:04.6]} 37...
Ke6 {[%clk 0:02:34.7]} 38. Nf1 {[%clk 0:01:50.8]} 38... Kf7 {[%clk 0:02:30.7]}
39. Nd2 {[%clk 0:01:51.8]} 39... Ne6 {[%clk 0:02:31.6]} 40. Nb3 {[%clk
0:01:51.8]} 40... fxg4 {[%clk 0:02:26]} 41. fxg4 {[%clk 0:01:52.1]} 41... g5
{[%clk 0:02:25]} 42. f5 {[%clk 0:01:49.9]} 42... Nd8 {[%clk 0:02:26.1]} 43. Na5
{[%clk 0:01:43.4]} 43... Ke7 {[%clk 0:02:26.7]} 44. Nxb7 {[%clk 0:01:30.4]}
44... Nxb7 {[%clk 0:02:25]} 45. Bxa6 {[%clk 0:01:32.3]} 45... Nd8 {[%clk
0:02:26.2]} 46. Bc8 {[%clk 0:01:33.4]} 46... Nf7 {[%clk 0:02:25.8]} 47. a5
{[%clk 0:01:31]} 47... Kd8 {[%clk 0:02:26.3]} 48. Be6 {[%clk 0:01:32.2]} 48...
Nh6 {[%clk 0:02:25.8]} 49. b5 {[%clk 0:01:27.5]} 49... cxb5 {[%clk 0:01:44.2]}
50. a6 {[%clk 0:01:21.7]} 50... Nxg4+ {[%clk 0:01:45]} 51. Kd3 {[%clk
0:01:22.6]} 51... Kc7 {[%clk 0:01:44.3]} 52. a7 {[%clk 0:01:23.1]} 52... Kb7
{[%clk 0:01:45.1]} 53. c6+ {[%clk 0:01:24.6]} 53... Kxa7 {[%clk 0:01:41.1]} 54.
c7 {[%clk 0:01:26]} 54... Nf2+ {[%clk 0:01:40.9]} 55. Ke3 {[%clk 0:01:22.7]}
55... Ng4+ {[%clk 0:01:41.8]} 56. Ke2 {[%clk 0:01:22.8]} 56... Be5 {[%clk
0:01:41.9]} 57. dxe5 {[%clk 0:01:22.2]} 57... Nxe5 {[%clk 0:01:42.3]} 58. c8=Q
{[%clk 0:01:22.6]} 1-0

[Event "*** Titled Tuesday Blitz AM"]
[Site "Chess.com"]
[Date "2020.01.07"]
[Round "1"]
[White "SCIM"]
[Black "AntonSmirnov"]
[Result "0-1"]
[WhiteElo "2501"]
[BlackElo "2903"]
[TimeControl "180+2"]
[EndTime "9:07:28 PST"]
[Termination "AntonSmirnov won by resignation"]

1. d4 {[%clk 0:03:01.7]} 1... d5 {[%clk 0:02:59.9]} 2. c4 {[%clk 0:03:02.3]}
2... c6 {[%clk 0:03:01.1]} 3. Nf3 {[%clk 0:03:02.4]} 3... Nf6 {[%clk 0:03:01.9]}
4. e3 {[%clk 0:03:03.7]} 4... Bg4 {[%clk 0:03:02.5]} 5. h3 {[%clk 0:03:02.9]}
5... Bh5 {[%clk 0:03:03.6]} 6. Nc3 {[%clk 0:03:01.3]} 6... e6 {[%clk 0:03:04.5]}
7. g4 {[%clk 0:03:01.6]} 7... Bg6 {[%clk 0:03:05.4]} 8. Ne5 {[%clk 0:03:03.2]}
8... Nbd7 {[%clk 0:03:06]} 9. Nxg6 {[%clk 0:03:03.4]} 9... hxg6 {[%clk
0:03:06.9]} 10. g5 {[%clk 0:03:03.2]} 10... Ne4 {[%clk 0:03:07.6]} 11. Nxe4
{[%clk 0:02:58.2]} 11... dxe4 {[%clk 0:03:09.5]} 12. h4 {[%clk 0:02:59.2]} 12...
Qa5+ {[%clk 0:03:10.6]} 13. Bd2 {[%clk 0:02:58.8]} 13... Bb4 {[%clk 0:03:11.7]}
14. a3 {[%clk 0:02:56.8]} 14... Bxd2+ {[%clk 0:03:12.8]} 15. Qxd2 {[%clk
0:02:57]} 15... Qxd2+ {[%clk 0:03:14.2]} 16. Kxd2 {[%clk 0:02:57.8]} 16... f5
{[%clk 0:03:14.4]} 17. Kc3 {[%clk 0:02:44.6]} 17... b6 {[%clk 0:03:00.6]} 18.
Be2 {[%clk 0:02:44.5]} 18... Ke7 {[%clk 0:03:01.2]} 19. h5 {[%clk 0:02:39.1]}
19... gxh5 {[%clk 0:03:01.6]} 20. Bxh5 {[%clk 0:02:37.3]} 20... Rh7 {[%clk
0:02:51.3]} 21. Bg6 {[%clk 0:02:19.5]} 21... Rxh1 {[%clk 0:02:51]} 22. Rxh1
{[%clk 0:02:21.3]} 22... Rg8 {[%clk 0:02:52.1]} 23. b4 {[%clk 0:02:02.6]} 23...
Nf8 {[%clk 0:02:52.4]} 24. Bh5 {[%clk 0:01:59.2]} 24... Rh8 {[%clk 0:02:52.9]}
25. Bf3 {[%clk 0:01:57.4]} 25... Rxh1 {[%clk 0:02:53.6]} 26. Bxh1 {[%clk
0:01:59.2]} 26... g6 {[%clk 0:02:42.6]} 27. f4 {[%clk 0:01:49.8]} 27... exf3
{[%clk 0:02:44.1]} 28. Bxf3 {[%clk 0:01:50.1]} 28... Kd7 {[%clk 0:02:44.8]} 29.
c5 {[%clk 0:01:22.4]} 29... bxc5 {[%clk 0:02:20.3]} 30. dxc5 {[%clk 0:01:17.3]}
30... Nh7 {[%clk 0:02:18.9]} 31. a4 {[%clk 0:01:14.3]} 31... Nxg5 {[%clk
0:02:19.7]} 32. Bg2 {[%clk 0:01:15]} 32... e5 {[%clk 0:02:13.7]} 33. b5 {[%clk
0:01:11.5]} 33... e4 {[%clk 0:02:14]} 34. b6 {[%clk 0:00:48.9]} 34... Kc8 {[%clk
0:02:13.5]} 35. a5 {[%clk 0:00:45.2]} 35... Kb7 {[%clk 0:02:14]} 36. Bf1 {[%clk
0:00:45.3]} 36... Ne6 {[%clk 0:02:04.8]} 37. Kb4 {[%clk 0:00:44.7]} 37... g5
{[%clk 0:01:55.8]} 38. Bc4 {[%clk 0:00:28.6]} 38... g4 {[%clk 0:01:48.7]} 39.
a6+ {[%clk 0:00:18.9]} 39... Kb8 {[%clk 0:01:48.8]} 40. Bf1 {[%clk 0:00:07.1]}
40... f4 {[%clk 0:01:44]} 41. exf4 {[%clk 0:00:07.2]} 41... Nxf4 {[%clk
0:01:45.1]} 42. Kc4 {[%clk 0:00:07.7]} 42... e3 {[%clk 0:01:46.1]} 43. bxa7+
{[%clk 0:00:03.5]} 43... Kxa7 {[%clk 0:01:47]} 0-1

[Event "*** Titled Tuesday Blitz AM"]
[Site "Chess.com"]
[Date "2020.01.07"]
[Round "1"]
[White "Shivagami"]
[Black "viktorskliarov"]
[Result "0-1"]
[WhiteElo "2132"]
[BlackElo "2577"]
[TimeControl "180+2"]
[EndTime "9:07:30 PST"]
[Termination "viktorskliarov won by resignation"]

1. d4 {[%clk 0:03:01.6]} 1... Nf6 {[%clk 0:03:00.6]} 2. c4 {[%clk 0:03:01.3]}
2... e6 {[%clk 0:03:01.7]} 3. Nc3 {[%clk 0:03:01.6]} 3... Bb4 {[%clk 0:03:00]}
4. f3 {[%clk 0:03:01]} 4... c5 {[%clk 0:03:00.4]} 5. d5 {[%clk 0:03:01.5]} 5...
b5 {[%clk 0:03:01.5]} 6. e4 {[%clk 0:03:01.1]} 6... bxc4 {[%clk 0:03:02.4]} 7.
Bxc4 {[%clk 0:03:01.6]} 7... Nxd5 {[%clk 0:03:03.3]} 8. Bxd5 {[%clk 0:02:58]}
8... exd5 {[%clk 0:03:04.2]} 9. Qxd5 {[%clk 0:02:58.8]} 9... Nc6 {[%clk
0:03:05.1]} 10. Nh3 {[%clk 0:02:50.8]} 10... Ba6 {[%clk 0:03:00.8]} 11. a3
{[%clk 0:02:30.6]} 11... Bxc3+ {[%clk 0:02:53]} 12. bxc3 {[%clk 0:02:31.1]}
12... O-O {[%clk 0:02:54.4]} 13. Bd2 {[%clk 0:01:48.2]} 13... Re8 {[%clk
0:02:02.4]} 14. Ng5 {[%clk 0:01:09.9]} 14... Qf6 {[%clk 0:01:46.7]} 15. Qxc5
{[%clk 0:00:49.9]} 15... Ne5 {[%clk 0:01:06.8]} 16. Qe3 {[%clk 0:00:16.5]} 16...
Nd3+ {[%clk 0:00:55.7]} 17. Kd1 {[%clk 0:00:17.6]} 17... d5 {[%clk 0:00:53.6]}
18. Kc2 {[%clk 0:00:17.4]} 18... h6 {[%clk 0:00:49.1]} 19. Nh3 {[%clk
0:00:18.1]} 19... Rac8 {[%clk 0:00:49.8]} 20. Kd1 {[%clk 0:00:14.4]} 20... dxe4
{[%clk 0:00:42.2]} 21. fxe4 {[%clk 0:00:15.2]} 21... Red8 {[%clk 0:00:42.1]} 22.
Rb1 {[%clk 0:00:09.4]} 22... Ne5 {[%clk 0:00:35.4]} 23. Nf4 {[%clk 0:00:08.3]}
23... Nc4 {[%clk 0:00:34.9]} 0-1

[Event "*** Titled Tuesday Blitz AM"]
[Site "Chess.com"]
[Date "2020.01.07"]
[Round "1"]
[White "Kriari"]
[Black "ohusbands"]
[Result "1-0"]
[WhiteElo "2926"]
[BlackElo "2513"]
[TimeControl "180+2"]
[EndTime "9:07:39 PST"]
[Termination "Kriari won on time"]

1. d4 {[%clk 0:03:00.4]} 1... Nf6 {[%clk 0:03:01]} 2. c4 {[%clk 0:03:01.6]} 2...
e6 {[%clk 0:03:02.5]} 3. g3 {[%clk 0:03:02.9]} 3... d5 {[%clk 0:03:03.5]} 4. Bg2
{[%clk 0:03:04]} 4... dxc4 {[%clk 0:03:05]} 5. Nf3 {[%clk 0:03:05.1]} 5... Bb4+
{[%clk 0:03:05.3]} 6. Nc3 {[%clk 0:03:01.3]} 6... O-O {[%clk 0:03:05.4]} 7. O-O
{[%clk 0:03:02.8]} 7... c6 {[%clk 0:02:39.5]} 8. Qc2 {[%clk 0:03:00.5]} 8... b5
{[%clk 0:02:37.9]} 9. e4 {[%clk 0:02:59.8]} 9... Bb7 {[%clk 0:02:35.3]} 10. e5
{[%clk 0:02:58.4]} 10... Nd5 {[%clk 0:02:35]} 11. Ng5 {[%clk 0:02:59.9]} 11...
g6 {[%clk 0:02:34.4]} 12. Nge4 {[%clk 0:03:00.4]} 12... Nd7 {[%clk 0:02:33.2]}
13. Bh6 {[%clk 0:03:00.2]} 13... Re8 {[%clk 0:02:32]} 14. h4 {[%clk 0:02:57.8]}
14... Qb6 {[%clk 0:02:19.3]} 15. Rad1 {[%clk 0:02:58]} 15... Be7 {[%clk
0:02:00.8]} 16. Ne2 {[%clk 0:02:46.9]} 16... c5 {[%clk 0:01:58.4]} 17. dxc5
{[%clk 0:02:26.4]} 17... Nxc5 {[%clk 0:01:58]} 18. Nd6 {[%clk 0:02:25.3]} 18...
Bxd6 {[%clk 0:01:57.8]} 19. exd6 {[%clk 0:02:27.2]} 19... Nd3 {[%clk 0:01:35.1]}
20. d7 {[%clk 0:01:36.5]} 20... Red8 {[%clk 0:01:34.2]} 21. Nc1 {[%clk
0:01:38.2]} 21... Rxd7 {[%clk 0:01:30.6]} 22. Nxd3 {[%clk 0:01:37.7]} 22... cxd3
{[%clk 0:01:32.5]} 23. Rxd3 {[%clk 0:01:33.5]} 23... Rc8 {[%clk 0:01:20.1]} 24.
Qd2 {[%clk 0:01:31.4]} 24... Rdc7 {[%clk 0:01:15.6]} 25. Qe1 {[%clk 0:01:15.6]}
25... Ne7 {[%clk 0:01:06.4]} 26. g4 {[%clk 0:00:45.1]} 26... Qc5 {[%clk
0:00:49.1]} 27. Qd2 {[%clk 0:00:39.3]} 27... Bd5 {[%clk 0:00:32.3]} 28. Qg5
{[%clk 0:00:32.9]} 1-0